Cogmind - Beta 17 @@@ ROGUE MODE // 2026.08.16 @ 21:55:40 Player: Marc Result: Self-destructed Performance ------------- Evolutions (1) 500 Regions Visited (2) 400 Robots Destroyed (12) 60 Value Destroyed (374) 374 Prototype IDs (0) 0 Alien Tech Used (0) 0 Bonus (0) 0 TOTAL SCORE: 1334 Bonus ------- None Cogmind --------- Core Integrity 348/400 Matter 127/300 Energy 91/100 System Corruption 0% Temperature Hot (218) Movement Rolling (115) Ox1 Location -9/Materials Parts ------- > --- POWER (1) -------- (None) > --- PROPULSION (2) --- Compact Wheel > --- UTILITY (4) ------ Large Storage Unit Structural Scanner Visual Processing Unit Signal Interpreter > --- WEAPON (2) ------- Small Laser Beam Rifle > --- INVENTORY (15) --- Light Ion Engine Small Storage Unit Terrain Scanner ECM Suite Light Assault Rifle Datajack Peak State ------------ > --- POWER ------------ Light Ion Engine > --- PROPULSION ------- Wheel Compact Wheel > --- UTILITY ---------- Large Storage Unit Structural Scanner Visual Processing Unit Signal Interpreter > --- WEAPON ----------- Small Laser Beam Rifle > --- INVENTORY -------- Light Ion Engine Small Storage Unit Terrain Scanner ECM Suite Light Assault Rifle Datajack [Rating: 11] Favorites ----------- Power Ion Engine Engine Ion Engine Propulsion Wheel Leg Aluminum Leg Wheel Wheel Utility Large Storage Unit Device Structural Scanner Storage Large Storage Unit Processor Visual Processing Unit Weapon Assault Rifle Energy Gun Small Laser Ballistic Gun Assault Rifle Launcher Grenade Launcher Build | -11 -10 -9 ------- Run | Yrd Mat Mat Slots Evolved 2 | . . 2 Power . | . . . Propulsion . | . . . Utility 2 | . . 2 Weapon . | . . . Parts Attached 14 | . 10 4 Power 1 | . 1 . Engine 1 | . 1 . Core . | . . . Reactor . | . . . Propulsion 4 | . 4 . Treads . | . . . Leg . | . . . Wheel 4 | . 4 . Hover . | . . . Flight . | . . . Utility 5 | . 2 3 Device 1 | . . 1 Storage 1 | . 1 . Processor 3 | . 1 2 Hackware . | . . . Protection . | . . . Artifact . | . . . Weapon 4 | . 3 1 Energy Gun 2 | . 1 1 Energy Cannon . | . . . Ballistic Gun 1 | . 1 . Ballistic Cannon . | . . . Launcher 1 | . 1 . Special Weapon . | . . . Impact Weapon . | . . . Slashing Weapon . | . . . Piercing Weapon . | . . . Special Melee Weapon . | . . . Unidentified Prototypes . | . . . Parts Lost 7 | . 5 2 Power 2 | . 1 1 Propulsion 3 | . 2 1 Utility . | . . . Weapon 2 | . 2 . Highest Loss Streak 4 | . 4 2 To Critical Strikes . | . . . Average Backups 6 | 6 6 5 Power 1 | 1 1 1 Propulsion . | 4 . . Utility 2 | . 2 2 Weapon 1 | 1 1 . Tool/Special . | . . . Unused Backups 7 | . 2 5 Power 1 | . . 1 Propulsion 2 | . 2 . Utility 3 | . . 3 Weapon . | . . . Tool/Special 1 | . . 1 Average Slot Usage (%) 90 | . 89 99 Engine 12 | . 12 11 Leg 2 | . 2 . Wheel 20 | . 19 22 Device 1 | . . 11 Storage 13 | . 14 11 Processor 12 | . 11 21 Energy Gun 6 | . 5 13 Ballistic Gun 14 | . 15 8 Launcher 5 | . 6 . Peak Build Rating 11 | 6 8 11 Average Rating 7 | 6 7 10 On Entrance 6 | 6 6 8 Avg Prop Armor Cover (%) . | . . . Naked Turns . | . . . Heaviest Build 30 | 13 30 28 Greatest Support 26 | 20 26 26 Greatest Overweight (x) 7 | . 7 1 Average Overweight (x) . | . . . Largest Inventory Capacity 15 | 8 15 15 Average Capacity 14 | 8 14 15 Most Carried 9 | 6 9 6 Average Carried 6 | 6 6 4 Final Capacity 15 | 8 15 15 Final Carried 6 | 6 6 6 Class Distribution -------------------- 100% | Mutant Dominant Class ---------------- Mutant | -10/Materials Mutant | -9/Materials Resources | -11 -10 -9 ----------- Run | Yrd Mat Mat Matter Collected 402 | 200 146 56 Remotely . | . . . Salvage Created 391 | . 283 108 Parts 28 | . 19 9 Haulers Intercepted 1 | . 1 . Recyclers Shooed . | . . . Parts Field Recycled . | . . . Retrieved Matter . | . . . Parts Self-Destructed . | . . . Prevented . | . . . Parts Restored . | . . . Kills | -11 -10 -9 ------- Run | Yrd Mat Mat Combat Hostiles Destroyed 10 | . 8 2 Guns 6 | . 4 2 AOE 4 | . 4 . Classes Destroyed 5 | . 4 1 Hauler 1 | . 1 . Watcher 1 | . 1 . Swarmer 3 | . 3 . Grunt 5 | . 5 . Sentry 2 | . . 2 Best Kill Streak 4 | . 4 2 Combat Bots Only 3 | . 3 2 Max Kills in Single Turn 3 | . 3 1 Gunslinging . | . . . Exploded 3 | . 3 . Melee . | . . . Uniques/NPCs Destroyed . | . . . Combat | -11 -10 -9 -------- Run | Yrd Mat Mat Hostile Shots Fired 80 | . 55 25 Missed 23 | . 16 7 Hits 57 | . 39 18 Melee 2 | . . 2 Projectile 55 | . 39 16 Damage Taken 785 | . 521 264 Core 139 | . 87 52 Absorbed by Shields . | . . . Core Remaining (%) 82 | 100 65 . Volleys Fired 60 | . 51 9 Largest 2 | . 2 2 Hottest 96 | . 60 96 Shots Fired 88 | . 70 18 Gun 76 | . 58 18 Cannon . | . . . Launcher 12 | . 12 . Special . | . . . Kinetic 54 | . 52 2 Thermal 22 | . 6 16 Explosive 12 | . 12 . Electromagnetic . | . . . Robot Hit Streak 10 | . 7 10 Robot Miss Streak 2 | . 2 1 Penetration Max . | . . . Secondary Targets 1 | . . 1 Max Gunslinging Chain 1 | . . 1 Shots Hit Robots 64 | . 49 15 Core Hits 28 | . 22 6 Critical Kills . | . . . Critical Parts Destroyed . | . . . Critical Strikes . | . . . Melee Attacks . | . . . Impact . | . . . Slashing . | . . . Piercing . | . . . Sneak Attacks . | . . . Combat Hostiles . | . . . Follow-up Attacks . | . . . Damage Inflicted 1022 | . 836 186 Guns 695 | . 509 186 Cannons . | . . . Explosions 327 | . 327 . Melee . | . . . Ramming . | . . . Kinetic 441 | . 441 . Thermal 254 | . 68 186 Explosive 327 | . 327 . Electromagnetic . | . . . Impact . | . . . Slashing . | . . . Piercing . | . . . Highest Corruption 1 | . 1 . Average Corruption 1 | . 1 . Corruption Purged . | . . . Corruption Blocked . | . . . Effects 1 | . 1 . Matter Fused 1 | . 1 . Overload Shots . | . . . Overflow Damage 11 | . 11 . Projectiles . | . . . Explosions 11 | . 11 . Melee . | . . . Knockbacks . | . . . Impact . | . . . Kinetic . | . . . Secondary . | . . . Self-Inflicted Damage 79 | . 79 . Shots 3 | . 3 . Rammed . | . . . Targets Rammed . | . . . Kicked . | . . . Crushed . | . . . Highest Temperature 218 | . 32 218 Average Temperature 48 | . 10 105 Received Heat Transfer 303 | . 222 81 Siege Activations . | . . . Martial Activations . | . . . Shielding Activations . | . . . Robots Disrupted . | . . . Combat Hostiles . | . . . Robots Corrupted . | . . . Combat Hostiles . | . . . Parts Fried . | . . . Impact Corruptions . | . . . Robots Melted . | . . . Combat Hostiles . | . . . Parts Melted . | . . . Heat Transferred 597 | . 150 447 Parts Sabotaged . | . . . Parts Stolen . | . . . Parts Stripped . | . . . Power Chain Reactions . | . . . Alert | -11 -10 -9 ------- Run | Yrd Mat Mat Maximum Alert Level . | . . . Low Security (%) 100 | 100 100 100 Level 1 . | . . . Level 2 . | . . . Level 3 . | . . . Level 4 . | . . . Level 5 . | . . . High Security . | . . . Max Security . | . . . Peak Influence 157 | . 157 50 Initial . | . . . Average 55 | . 61 10 Influence Increases 413 | . 353 60 Destroy 0b10 Robot/C 200 | . 160 40 Destroy 0b10 Robot/NC 10 | . 10 . Destroy Leader 64 | . 44 20 Successful Hack 29 | . 29 . Disable Machine 60 | . 60 . Destroy Structure 50 | . 50 . Influence Decreases 383 | . 353 30 Time Decay 313 | . 303 10 Lost Part 70 | . 50 20 Squads Dispatched 3 | . 2 1 Investigation 3 | . 2 1 Extermination . | . . . Reinforcement . | . . . Assault . | . . . Garrison . | . . . Intercept . | . . . Searches Triggered . | . . . Construction Impeded . | . . . Haulers Reinforced . | . . . Active Scanning Responses . | . . . Cargo Convoy Interrupts . | . . . Stealth | -11 -10 -9 --------- Run | Yrd Mat Mat Distress Signals 2 | . 2 . Communications Jammed . | . . . Distress Signals . | . . . Times Spotted 18 | . 13 5 Peak Tracking Total 4 | . 4 3 Tactical Retreats . | . . . Traps | -11 -10 -9 ------- Run | Yrd Mat Mat Traps Triggered 3 | . 3 . Indirectly . | . . . Trap Hack Attempts . | . . . Triggered . | . . . Disarmed . | . . . Reprogrammed . | . . . Reused . | . . . Traps Extracted . | . . . Installed . | . . . Triggered . | . . . Machines | -11 -10 -9 ---------- Run | Yrd Mat Mat Machines Disabled 4 | . 4 . Max in Single Turn 1 | . 1 . Machines Repaired . | . . . Machines Dismantled . | . . . Machines Sabotaged . | . . . Overloaded Fab Kills . | . . . Hacking | -11 -10 -9 --------- Run | Yrd Mat Mat Machines Accessed 9 | . 7 2 Terminals 9 | . 7 2 Fabricators . | . . . Repair Stations . | . . . Recycling Units . | . . . Scanalyzers . | . . . Garrison Access . | . . . Total Hacks 19 | . 14 5 Successful 9 | . 9 . Failed 10 | . 5 5 Catastrophic 4 | . 2 2 Database Lockouts . | . . . Manual 18 | . 13 5 Terminals 19 | . 14 5 Fabricators . | . . . Repair Stations . | . . . Recycling Units . | . . . Scanalyzers . | . . . Garrison Access . | . . . Terminal Hacks 2 | . 2 . Branch Access Points 1 | . 1 . Zone Layout 1 | . 1 . Fabricator Hacks . | . . . Repair Station Hacks . | . . . Recycling Unit Hacks . | . . . Scanalyzer . | . . . Garrison Access Hacks . | . . . Unauthorized Hacks 7 | . 7 . Terminals 7 | . 7 . Track 1 | . 1 . Botnet 6 | . 6 . Fabricators . | . . . Repair Stations . | . . . Recycling Units . | . . . Scanalyzers . | . . . Garrison Access . | . . . Data Cores Recovered . | . . . Used . | . . . Hacking Detections 5 | . 3 2 Full Trace Events 1 | . . 1 Feedback Events . | . . . Feedback Blocked . | . . . Robot Schematics Acquired . | . . . Robots Built . | . . . Authchips . | . . . Time . | . . . Total Robot Build Rating . | . . . Part Schematics Acquired . | . . . Parts Built . | . . . Authchips . | . . . Time . | . . . Total Part Build Rating . | . . . Part Studies Acquired . | . . . Parts Repaired . | . . . Time . | . . . Parts Recycled . | . . . Recycled Matter . | . . . Retrieved Matter . | . . . Retrieved Components . | . . . Parts Scanalyzed . | . . . Part Schematics Acquired . | . . . Parts Damaged . | . . . Bothacking | -11 -10 -9 ------------ Run | Yrd Mat Mat Used RIF Installer . | . . . Robots Hacked . | . . . Non-combat . | . . . Combat . | . . . Robot Hacks Applied . | . . . Relay Couplers Released . | . . . Fabnet Peak Effective % . | . . . Robots Rewired . | . . . Allies Hacked . | . . . Hacks Repelled . | . . . Allies | -11 -10 -9 -------- Run | Yrd Mat Mat Total Allies . | . . . Largest Group . | . . . Highest-Rated Group . | . . . Highest-Rated Ally . | . . . Total Orders . | . . . Ally Attacks . | . . . Total Damage . | . . . Kills . | . . . Allies Corrupted . | . . . Allies Melted . | . . . Intel | -11 -10 -9 ------- Run | Yrd Mat Mat Active Infowar (turns) 838 | . 722 116 Optics 838 | . 722 116 Structural 116 | . . 116 Robot Analysis Total . | . . . Derelict Logs Recovered . | . . . Drone Launches . | . . . Drone Recoveries . | . . . Exploration | -11 -10 -9 ------------- Run | Yrd Mat Mat Turns Passed 1005 | 2 887 116 Spaces Moved 685 | 2 594 89 Core 13 | . 13 . Treads . | . . . Legs 56 | 2 54 . Wheels 616 | . 527 89 Hover . | . . . Flight . | . . . Fastest Speed 90 | 120 90 90 Average Speed 106 | 120 108 90 Slowest Speed 400 | 120 400 105 Overloaded Moves . | . . . Propulsion Burnouts . | . . . Robots Hopped . | . . . Potential Cave-ins . | . . . Cave-ins Triggered . | . . . Exploration Rate (%) 35 | 2 95 10 Regions Visited 2 Branch Regions . Pre-discovered Areas . | . . . Known Exits Taken . | . . . Unknown Exits Taken 2 | 1 1 . Scrap Searched . | . . . Spaces Dug . | . . . Terrain Destroyed 59 | . 59 . Melee . | . . . Projectile . | . . . AOE 59 | . 59 . Terrain Rammed . | . . . Walls Destroyed . | . . . Machines Disabled . | . . . Actions | -11 -10 -9 --------- Run | Yrd Mat Mat Total 875 | 1 769 105 Wait 98 | . 98 . Move 683 | 1 593 89 Hop . | . . . Pick Up 13 | . 10 3 Fast Attach . | . . . Attach 9 | . 7 2 Detach 1 | . 1 . Swap 7 | . 5 2 Drop 4 | . 4 . Fire 60 | . 51 9 Melee . | . . . Ram . | . . . Kick . | . . . Crush . | . . . Escape Stasis . | . . . Rewire . | . . . Trap . | . . . Miscellaneous . | . . . Route ------- -11/Scrapyard -10/Materials (discovered 5 exits: *Mat x3 / *Min / [*Sub]) -9/Materials History --------- Turn | Location | Event 1 | -11/Scrapyard | Discovered new exit (range 1) 3 | -11/Scrapyard | Entered Materials 218 | -10/Materials | Discovered new exit (range 17) 305 | -10/Materials | Build established: Mutant 346 | -10/Materials | Discovered new exit (range 6) 377 | -10/Materials | Discovered new exit (range 6) 601 | -10/Materials | Lost 4 parts (1p2n1w) 674 | -10/Materials | Discovered new exit (range 11) 743 | -10/Materials | Discovered new exit (range 14) 787 | -10/Materials | Identified exit to Mines 890 | -10/Materials | Entered another Materials area 890 | -9/Materials | Evolved 2 slots: Utility x2 1006 | -9/Materials | Self-destructed Last Messages --------------- 00840_ Acquired 43 matter. PARAMETERS=UTILITY+2 LOCATION=UNKNOWN GOAL=ESCAPE 00898_ Acquired Visual Processing Unit. 00901_ Discarded Visual Processing Unit. 00907_ Connecting with Terminal... 00907_ Current location identified: Materials 00934_ Acquired Terrain Scanner. 00964_ Connecting with Terminal... 00964_ ALERT: Suspicious activity at Terminal M012. Dispatching Investigation squad. 00971_ Y-45 Defender destroyed. 00976_ Acquired 56 matter. 00978_ Acquired Beam Rifle. 00991_ Y-45 Defender destroyed. 00991_ Switching to secondary target: G-34 Mercenary. 01001_ Lgt. Ion Engine destroyed. 01004_ R-06 Scavenger collects Lgt. Treads. 01004_ Wheel destroyed. Map ----- +----------------------------------------------------+ | ??????????????????????????????????????? | | ??????????????????????????????????????? | | ??????????????????????????????????????? | | ??????????????????????????????????????? | | ??????????????????????????????????????? | | ??????????????????????????????????????? | | ??????????????????????????????????????? | | ??????????????????????????????????????? | | ??????????????????????????????????????? | | ??????????????????????????????????????? | | ??????????????????????????????????????? | | ??????????????????????????????????????? | | ??????????????????????????????????????? | | ??????????????????????????????????????? | | ??????????????????????????????????????? | | ??????????????????????????????????????? | | ??????????????????????????????????????? | | ????????????????? ##??????????????????? | | ????????????????? ##?? ?????????????? | | ????????????????? ##?? ##?????????????? | | ????????????????? ##? ###????????????? | | ????????? ## ###????????????? | | ?????????#######+## ##????????????? | | ?????????## g ! ##????????????? | | ?????????## r %[ ##????????????? | | ?????????## @l ! ##????????????? | | ????????### ##### ###???????????? | | ????????### #############???????????? | | ????????## ##### # ???????????? | | ????????## ! # ???????????? | | ????????## ! = T # ???????????? | | ????????## ! # ???????????? | | ???####### ##### # ???????????? | | ???################## ###???????????? | | ???## ####?### # ???????????? | | ???## ######## # ????????????? | | ???## ######## # ????????????? | | ???##%* # ## # ????????????? | | ???##!* # # ????????????? | | ???## + " # ????????????? | | ???## # # ????????????? | | ???## # ##+####????????????? | | ???## ## ## ????????????? | | ???############ ## ""????????????? | | ???############ ## """ ##????????? | | ?????????????## ## ] """ ##????????? | | ?????????????## ## ##????????? | | ?????????????## ## """ ##????????? | | ????########### ## """ ##????????? | | ????########### ## """ ##????????? | +----------------------------------------------------+ Best States ------------- Heat Dissipation 28 Energy Generation 10 Energy Capacity 250 Matter Stores 300 Matter Capacity 300 Sight Range 18 Terrain Scan Density 10 Evasion (%) 55 Item Schematics ----------------- None Robot Schematics ------------------ None Fabricated ------------ Nothing Repaired ---------- Nothing Studied --------- None Alien Tech Used ----------------- None Achievements -------------- None Challenges ------------ None Game ------ Seed RelayHardlightNanosword Manual? 0 Play Time 00:09:14 Cumulative 27.5 hours Start 2026.08.16 @ 21:47:34 End 2026.08.16 @ 21:55:40 Sessions 1 Manual Loads 0 Difficulty Rogue Special Mode None Game No. 87 Rogue 80 Adventurer 7 Explorer 0 Win Type - Total 0 Types 0/0/0/0/0/0/0/0/0/0 Lore% 29 Gallery% 33 Achievement% 27 Wizard Run 0 Options --------- Layout 0 ASCII 0 Keyboard 0 Movement Mouse Keybinds 0 Fullscreen 1 Font 18/SmallcapsGlow Map View 38x25 Zoom Use 100% Tactical HUD 1 Map Filters NONE Filters NONE Steam 1 RUN: 3739e78d-b2fc-462c-add5-28d7defbfc69